bitfinex/quotes_SOLUSD_20250130
["timestamp","ask_amount","ask_price","bid_price","bid_amount"]
[1738253830194,0.77623379,241.58,241.53,12.32393215]
[1738253830391,6.2298,241.63,241.55,12.32393215]
[1738253830596,0.063,241.65,241.61,12.32393215]
[1738253830773,0.063,241.65,241.63,12.32393215]
[1738253831681,0.063,241.65,241.64,0.24646399]
[1738253832684,0.063,241.65,241.64,19.9737521]
[1738253832992,0.063,241.65,241.64,39.9737521]
[1738253835869,0.063,241.65,241.64,53.38560063]
[1738253836287,0.063,241.65,241.64,39.9737521]
[1738253838086,0.063,241.65,241.64,19.9737521]
[1738253838282,0.063,241.65,241.62,19.72728811]
[1738253838787,0.063,241.65,241.64,19.72728811]
[1738253839380,0.063,241.65,241.6,0.24642536]
[1738253839381,0.063,241.65,241.6,19.97371347]
[1738253839786,0.063,241.65,241.62,19.72728811]
[1738253840583,0.063,241.65,241.6,19.72728811]
[1738253840784,0.063,241.65,241.59,0.03]
[1738253841488,13.41184853,241.64,241.59,0.03]
[1738253841705,20.50344158,241.63,241.59,0.03]
[1738253842382,13.41184853,241.62,241.59,0.03]
[1738253842587,0.77617383,241.61,241.59,0.03]
[1738253843387,13.41184853,241.6,241.59,0.03]
[1738253844016,0.77623403,241.63,241.59,0.03]
[1738253844182,81.37604147,241.64,241.59,19.75728811]
[1738253844497,0.063,241.65,241.59,19.75728811]
[1738253844675,13.47484853,241.65,241.59,19.75728811]
[1738253845095,0.77601092,241.64,241.59,19.75728811]
[1738253845616,13.41184853,241.63,241.59,19.75728811]
[1738253845905,19.72728811,241.61,241.59,0.03]
[1738253846115,14.18812494,241.6,241.59,0.03]
[1738253846483,0.77619593,241.63,241.59,0.03]
[1738253847007,80.6,241.64,241.59,19.75728811]
[1738253847183,81.37609549,241.64,241.59,19.75728811]
[1738253847378,0.063,241.65,241.59,19.75728811]
[1738253847379,0.063,241.65,241.63,19.72728811]
[1738253847589,0.063,241.65,241.64,0.24647421]
[1738253850403,0.063,241.65,241.63,19.72728811]
[1738253850794,0.063,241.65,241.61,19.72728811]
[1738253851690,0.063,241.65,241.63,19.72728811]
[1738253851886,0.063,241.65,241.64,0.24641487]
[1738253852486,0.063,241.65,241.63,19.72728811]
[1738253852696,0.063,241.65,241.61,19.72728811]
[1738253853185,19.79028811,241.65,241.59,0.03]
[1738253853381,0.77608567,241.64,241.59,0.03]
[1738253854181,13.41184853,241.63,241.59,0.03]
[1738253854583,0.77608375,241.62,241.59,0.03]
[1738253855004,0.77613651,241.64,241.59,0.03]
[1738253855815,19.72728811,241.6,241.59,0.03]
[1738253856309,13.41184853,241.6,241.59,0.03]
[1738253856698,0.7762855,241.62,241.59,0.03]
[1738253857094,80.6,241.63,241.59,0.03]
[1738253857295,80.6,241.63,241.62,19.72728811]
[1738253857505,0.063,241.65,241.62,19.72728811]
[1738253857710,0.063,241.65,241.59,0.27676539]
[1738253857711,0.063,241.65,241.64,19.72728811]
[1738253858091,0.063,241.65,241.62,19.72728811]
[1738253858403,0.063,241.65,241.6,19.72728811]
[1738253858910,0.063,241.65,241.62,19.72728811]
[1738253860114,0.063,241.65,241.6,19.72728811]
[1738253860420,0.83897302,241.65,241.62,0.03]
[1738253861193,13.41184853,241.64,241.62,0.03]
[1738253861394,0.77606453,241.63,241.62,0.03]
[1738253861605,13.41184853,241.64,241.62,0.03]
[1738253862207,0.83908812,241.65,241.62,0.03]
[1738253862714,13.47484853,241.65,241.62,0.03]
[1738253863009,0.77602795,241.64,241.62,0.03]
[1738253863389,0.063,241.65,241.62,0.03]
[1738253863588,0.063,241.65,241.62,12.37248569]
[1738253863800,0.063,241.65,241.64,12.34248569]
[1738253865618,0.063,241.65,241.64,12.58857913]
[1738253866510,0.063,241.65,241.64,19.97178068]
[1738253868311,0.063,241.65,241.64,39.69746792]
[1738253868614,13.41184853,241.8,241.67,21.0]
[1738253868816,106.56298724,241.82,241.74,19.72568724]
[1738253869319,14.18733128,241.81,241.74,19.72568724]
[1738253869623,14.18733128,241.81,241.7,19.72568724]
[1738253869624,19.72568724,241.78,241.7,19.72568724]
[1738253869923,0.77567138,241.77,241.7,19.72568724]
[1738253870104,13.41184853,241.76,241.7,19.72568724]
[1738253870300,13.41184853,241.76,241.68,0.24606421]
[1738253870301,0.7757189,241.75,241.68,19.72568724]
[1738253870505,19.72568724,241.8,241.72,19.72568724]
[1738253870706,14.18739887,241.79,241.72,19.72568724]
[1738253871222,0.77555034,241.79,241.72,19.72568724]
[1738253871606,14.18739887,241.79,241.72,19.72568724]
[1738253872538,0.77555034,241.79,241.72,19.72568724]
[1738253873095,13.41184853,241.78,241.72,19.72568724]
[1738253873302,20.50131808,241.78,241.7,19.72568724]
[1738253873509,20.50128567,241.8,241.72,19.72568724]
[1738253873710,0.77559843,241.81,241.76,19.72568724]
[1738253873914,0.063,241.83,241.8,19.72568724]
[1738253874612,0.063,241.83,241.79,19.72568724]
[1738253875323,0.063,241.83,241.8,0.24541187]
[1738253875526,0.063,241.83,241.81,19.72568724]
[1738253875710,0.063,241.83,241.82,19.97101913]
[1738253876506,0.063,241.83,241.82,19.72568724]
[1738253877120,0.063,241.83,241.82,19.97059826]
[1738253877510,0.063,241.88,241.87,13.41184853]
[1738253877806,0.063,241.94,241.9,20.0]
[1738253878110,0.063,241.94,241.93,19.72568724]
[1738253880206,0.063,241.94,241.89,19.72568724]
[1738253880406,13.47484853,241.94,241.86,19.72568724]
[1738253880619,20.50084217,241.93,241.86,19.72568724]
[1738253882027,13.41184853,241.92,241.86,19.72568724]
[1738253882233,0.063,241.94,241.88,19.72568724]
[1738253882925,13.47484853,241.94,241.88,19.72568724]
[1738253883434,13.41184853,241.92,241.86,19.72568724]
[1738253886233,13.41184853,241.92,241.86,19.78868724]
[1738253887030,0.7751679,241.91,241.86,19.78868724]
[1738253887334,13.41184853,241.9,241.86,0.063]
[1738253887711,33.13753577,241.88,241.86,0.063]
[1738253887913,0.77530267,241.87,241.86,0.063]
[1738253888443,33.91283844,241.87,241.86,0.063]
[1738253889031,80.6,241.91,241.86,0.063]
[1738253889236,81.43812832,241.94,241.89,19.72568724]
[1738253889412,0.063,241.94,241.93,19.72568724]
[1738253891648,0.063,241.94,241.93,19.96996159]
[1738253892035,0.063,241.94,241.93,21.09545159]
[1738253892224,0.063,241.94,241.93,20.96996159]
[1738253892765,0.063,241.94,241.93,19.96996159]
[1738253893123,0.063,241.97,241.96,20.0]
[1738253893324,0.063,241.97,241.96,39.96979104]
[1738253895222,0.063,241.97,241.96,40.96979104]
[1738253895831,0.063,241.97,241.96,41.09528104]
[1738253896743,0.063,241.97,241.96,39.96979104]
[1738253897540,0.063,241.97,241.96,40.09528104]
[1738253898847,0.063,241.97,241.96,41.09528104]
[1738253899640,0.063,241.97,241.96,39.96979104]
[1738253899953,0.063,241.97,241.96,40.09528104]
[1738253901664,19.72568724,242.11,241.96,40.09528104]
[1738253901958,240.46226605,242.34,242.07,19.72568724]
[1738253901959,26.36478724,242.15,242.07,19.72568724]
[1738253902166,6.6391,242.15,242.11,19.72568724]
[1738253902760,6.6391,242.15,242.09,19.72568724]
[1738253903348,6.6391,242.15,242.07,19.72568724]
[1738253903554,19.72568724,242.09,242.02,20.0]
[1738253903849,0.77462667,242.08,242.02,20.0]
[1738253904762,0.77462667,242.08,242.01,19.72568724]
[1738253905083,19.72568724,242.11,242.03,19.72568724]
[1738253905249,19.72568724,242.11,242.04,0.24381254]
[1738253905648,19.72568724,242.11,242.03,19.72568724]
[1738253906346,0.77456823,242.1,242.03,19.72568724]
[1738253906854,19.72568724,242.11,242.04,0.24389216]
[1738253907049,20.50026863,242.13,242.05,19.72568724]
[1738253907260,0.77448072,242.14,242.07,19.72568724]
[1738253907465,26.36478724,242.15,242.09,19.72568724]
[1738253907650,0.03,242.22,242.0,1.0]
[1738253907651,4.4855,242.21,242.13,19.72568724]
[1738253907970,0.03,242.22,242.18,19.72568724]
[1738253908175,0.03,242.22,242.19,0.24290262]
[1738253908341,0.03,242.22,242.18,19.72568724]
[1738253909552,0.03,242.22,242.2,19.72568724]
[1738253909760,0.03,242.22,242.21,0.24252848]
[1738253910650,0.03,242.22,242.21,0.36801848]
[1738253910964,0.03,242.22,242.21,13.90535701]
[1738253911165,0.03,242.35,242.26,20.0]
[1738253911356,0.03,242.35,242.34,19.72568724]
[1738253911782,0.03,242.35,242.34,19.96724295]
[1738253912666,0.03,242.35,242.34,19.72568724]
[1738253913450,0.03,242.35,242.32,19.72568724]
[1738253913980,0.03,242.35,242.29,0.24168418]
[1738253914183,0.03,242.35,242.31,19.72568724]
[1738253914778,19.75568724,242.35,242.28,19.72568724]
[1738253915105,19.75568724,242.35,242.26,19.72568724]
[1738253915106,0.77381266,242.34,242.26,19.72568724]
[1738253915293,19.72568724,242.33,242.26,19.72568724]
[1738253915466,0.03,242.35,242.21,19.72568724]
[1738253915467,19.72568724,242.29,242.21,19.72568724]
[1738253915665,19.72568724,242.29,242.19,10.88978902]
[1738253915666,19.72568724,242.31,242.23,19.72568724]
[1738253916051,0.77390782,242.3,242.23,19.72568724]
[1738253916698,19.72568724,242.33,242.25,19.72568724]
[1738253916987,0.80401561,242.35,242.31,19.72568724]
[1738253916988,0.03,242.35,242.31,19.72568724]
[1738253917371,0.80370727,242.35,242.29,19.72568724]
[1738253918090,19.72568724,242.33,242.25,19.72568724]
[1738253918257,19.72568724,242.31,242.23,19.72568724]
[1738253918457,0.77386564,242.3,242.26,19.72568724]
[1738253918685,4.1265,242.34,242.24,19.72568724]
[1738253918686,0.77392772,242.29,242.24,19.72568724]
[1738253918891,4.1265,242.34,242.22,39.96827206]
[1738253918892,20.49965969,242.3,242.22,39.96827206]
[1738253919264,19.72568724,242.32,242.24,19.72568724]
[1738253919568,0.77390647,242.31,242.24,19.96822956]
[1738253920290,19.72568724,242.3,242.22,39.72568724]
[1738253920494,20.49967382,242.34,242.26,19.72568724]
[1738253920855,20.49967382,242.34,242.23,0.24270254]
[1738253920856,13.41184853,242.31,242.23,0.24270254]
[1738253921056,13.41184853,242.23,242.19,10.88978902]
[1738253921255,20.49984361,242.22,242.14,19.72568724]
[1738253922303,20.49984361,242.22,242.15,0.24319027]
[1738253922472,1.0,242.31,242.15,0.24319027]
[1738253922473,19.72568724,242.26,242.18,19.72568724]
[1738253922679,19.72568724,242.28,242.2,19.72568724]
[1738253922874,0.03,242.22,242.2,19.72568724]
[1738253924172,0.03,242.22,242.18,19.72568724]
[1738253925468,0.80417755,242.22,242.18,19.72568724]
[1738253925675,13.44184853,242.22,242.18,19.72568724]
[1738253925873,0.03,242.22,242.18,19.72568724]
[1738253926086,0.03,242.22,242.2,19.72568724]
[1738253926480,0.03,242.22,242.18,19.72568724]
[1738253926690,0.03,242.22,242.16,19.72568724]
[1738253927007,0.80422953,242.22,242.16,19.72568724]
[1738253927995,0.03,242.22,242.18,19.72568724]
[1738253931003,0.03,242.22,242.2,19.72568724]
[1738253931200,0.03,242.22,242.21,0.2427638]
[1738253932480,0.03,242.35,242.23,20.0]
[1738253932789,0.03,242.35,242.33,19.72568724]
[1738253933388,0.03,242.35,242.34,0.24209242]
[1738253933785,0.03,242.35,242.31,19.72568724]
[1738253935883,0.03,242.35,242.33,19.72568724]
[1738253936283,0.03,242.35,242.34,0.24214082]
[1738253942192,0.03,242.35,242.33,19.72568724]
[1738253942600,0.03,242.35,242.34,0.24198819]
[1738253944809,0.03,242.35,242.34,0.36747819]
[1738253945204,0.03,242.35,242.34,1.49296819]
[1738253945405,19.72568724,242.54,242.47,19.72568724]
[1738253945598,0.77318523,242.53,242.47,19.72568724]
[1738253945798,0.77318523,242.53,242.45,19.72568724]
[1738253945994,13.41184853,242.52,242.45,19.72568724]
[1738253946406,13.41184853,242.5,242.45,19.72568724]
[1738253946609,13.41184853,242.48,242.43,19.72568724]
[1738253946919,13.41184853,242.46,242.39,19.72568724]
[1738253947091,0.77347382,242.45,242.39,19.72568724]
[1738253948611,13.41184853,242.44,242.37,19.72568724]
[1738253949002,1.6201,242.47,242.42,19.72568724]
[1738253949199,1.6201,242.47,242.34,1.0]
[1738253949200,0.77331945,242.49,242.43,19.72568724]
[1738253949513,13.41184853,242.48,242.44,19.72568724]
[1738253949695,86.25,242.53,242.45,0.241376]
[1738253949696,1.5267,242.53,242.45,0.241376]
[1738253949898,1.5267,242.53,242.51,19.72568724]
[1738253950210,13.41184853,242.55,242.51,19.72568724]
[1738253950405,0.77311008,242.58,242.51,19.72568724]
[1738253950598,0.7730234,242.59,242.53,19.72568724]
[1738253950804,13.41184853,242.58,242.53,19.72568724]
[1738253951709,13.41184853,242.59,242.53,19.72568724]
[1738253951897,13.41184853,242.59,242.55,19.72568724]
[1738253952095,0.03,242.6,242.57,19.72568724]
[1738253953114,0.03,242.6,242.59,19.72568724]
[1738253955495,0.03,242.6,242.59,19.96566941]
[1738253956115,19.72568724,242.77,242.59,40.94233665]
[1738253956331,4.1183,242.82,242.74,19.72568724]
[1738253956618,20.49802068,242.81,242.74,19.72568724]
[1738253956800,13.41184853,242.78,242.72,19.72568724]
[1738253959897,19.72568724,242.79,242.72,19.72568724]
[1738253960103,19.72568724,242.81,242.72,19.72568724]
[1738253960414,0.03,242.78,242.72,19.72568724]
[1738253960924,0.80240182,242.78,242.7,19.72568724]
[1738253961127,13.41184853,242.74,242.66,19.72568724]
[1738253961297,13.41184853,242.71,242.63,19.72568724]
[1738253961494,13.41184853,242.71,242.65,19.72568724]
[1738253962507,19.72568724,242.74,242.66,0.23995496]
[1738253962701,0.77256157,242.73,242.66,0.23995496]
[1738253962908,33.13753577,242.72,242.65,19.72568724]
[1738253963237,13.41184853,242.69,242.61,19.72568724]
[1738253963521,13.41184853,242.69,242.62,0.24007325]
[1738253965121,14.18454232,242.69,242.62,0.24007325]
[1738253965423,14.18454232,242.69,242.61,19.72568724]
[1738253965821,13.41184853,242.69,242.63,19.72568724]
[1738253966130,10.4975,242.72,242.65,19.72568724]
[1738253966338,14.18449392,242.71,242.65,19.72568724]
[1738253966524,13.41184853,242.7,242.65,19.72568724]
[1738253967328,30.22318724,242.72,242.65,19.72568724]
[1738253967527,26.10328724,242.72,242.65,19.72568724]
[1738253967709,6.3776,242.72,242.65,19.72568724]
[1738253967914,13.41184853,242.71,242.65,19.72568724]
[1738253968114,13.41184853,242.71,242.66,0.23988869]
[1738253968316,13.41184853,242.71,242.67,19.72568724]
[1738253968830,13.41184853,242.71,242.63,19.72568724]
[1738253969034,14.18450145,242.71,242.63,19.72568724]
[1738253969533,13.41184853,242.69,242.61,19.72568724]
[1738253969734,0.77273333,242.68,242.61,19.72568724]
[1738253969927,13.41184853,242.67,242.61,19.72568724]
[1738253970148,0.77276129,242.66,242.59,19.78868724]
[1738253970521,13.41184853,242.65,242.59,19.78868724]
[1738253970842,0.77283606,242.64,242.6,20.0]
[1738253971023,14.18468631,242.65,242.6,20.0]
[1738253971210,19.72568724,242.68,242.61,19.72568724]
[1738253971416,0.7727399,242.67,242.61,19.72568724]
[1738253972035,13.41184853,242.66,242.61,19.72568724]
[1738253972244,0.77285499,242.65,242.59,19.78868724]
[1738253974042,0.03,242.66,242.61,19.72568724]
[1738253974809,0.03,242.66,242.61,12.23796029]
[1738253975014,13.44184853,242.66,242.61,12.23796029]
[1738253975236,0.77278752,242.65,242.59,12.30096029]
[1738253975615,0.77278752,242.65,242.59,0.063]
[1738253975820,13.41184853,242.63,242.59,0.063]
[1738253976126,0.77294757,242.62,242.59,0.063]
[1738253976325,13.41184853,242.61,242.59,0.063]
[1738253976534,14.18480776,242.6,242.59,0.063]
[1738253976942,26.42276805,242.6,242.59,0.063]
[1738253977813,14.18480776,242.6,242.59,0.063]
[1738253978129,13.41184853,242.6,242.59,12.30096029]
[1738253978645,6.2102,242.64,242.59,12.30096029]
[1738253979116,13.41184853,242.65,242.59,12.30096029]
[1738253979433,13.41184853,242.65,242.61,12.23796029]
[1738253985418,14.21462928,242.66,242.61,12.23796029]
[1738253985615,14.21462928,242.66,242.59,12.30096029]
[1738253985943,26.45258957,242.66,242.59,12.30096029]
[1738253986243,26.45258957,242.66,242.59,0.063]
[1738253986539,12.23796029,242.64,242.59,0.063]
[1738253986727,13.41184853,242.62,242.59,0.063]
[1738253988453,0.7728621,242.62,242.59,0.063]
[1738253989519,13.41184853,242.63,242.59,0.063]
[1738253989854,25.64980882,242.64,242.59,0.063]
[1738253990036,0.7728925,242.63,242.59,0.063]
[1738253991646,25.64980882,242.6,242.59,0.063]
[1738253991832,26.42295393,242.6,242.59,0.063]
[1738253992422,25.64980882,242.6,242.59,0.063]
[1738253992675,30.54488051,242.6,242.59,0.063]
[1738253993958,26.42288051,242.6,242.59,0.063]
[1738253998150,25.64980882,242.6,242.59,0.063]
[1738253999578,13.41184853,242.6,242.59,0.063]
[1738254000182,25.64980882,242.6,242.59,0.063]
[1738254002357,13.41184853,242.6,242.59,0.063]
[1738254003861,26.42281659,242.6,242.59,0.063]
[1738254004754,13.41184853,242.6,242.59,0.063]
[1738254004961,0.03,242.65,242.59,0.063]
[1738254005261,13.44184853,242.65,242.59,0.063]
[1738254005462,0.7728852,242.64,242.59,0.063]
[1738254006050,13.41184853,242.63,242.59,0.063]
[1738254006361,13.41184853,242.61,242.59,0.063]
[1738254006860,14.18477038,242.63,242.59,0.063]
[1738254007553,13.41184853,242.63,242.59,0.063]
[1738254007748,13.01085349,242.64,242.59,0.063]
[1738254007749,0.7728932,242.64,242.59,0.063]
[1738254007952,0.03,242.65,242.6,12.23796029]
[1738254008759,0.03,242.63,242.6,12.23796029]
[1738254009460,0.03,242.63,242.62,12.23796029]
[1738254013481,0.03,242.63,242.61,12.23796029]
[1738254014054,0.03,242.63,242.62,12.4781709]
[1738254014450,0.03,242.63,242.62,13.4781709]
[1738254014647,0.03,242.65,242.64,1.12549]
[1738254014851,0.03,242.66,242.64,25.84082035]
[1738254016146,0.03,242.66,242.65,20.0]
[1738254017860,0.03,242.66,242.64,24.71533035]
[1738254017861,0.03,242.66,242.64,25.71533035]
[1738254019579,0.03,242.66,242.65,20.0]
[1738254020071,0.03,242.66,242.65,32.23796029]
[1738254020256,0.03,242.66,242.65,20.0]
[1738254020875,0.03,242.66,242.65,12.23796029]
[1738254021171,0.03,242.66,242.64,12.23796029]
[1738254021572,0.03,242.66,242.63,0.063]
[1738254021756,13.41184853,242.65,242.63,0.063]
[1738254022177,0.03,242.66,242.63,0.063]
[1738254024559,0.03,242.66,242.65,12.23796029]
[1738254025458,0.03,242.66,242.65,12.47759793]
[1738254026268,0.03,242.66,242.65,0.23963764]
[1738254030155,0.03,242.66,242.65,0.36512764]
[1738254030355,1.5202,242.8,242.74,12.23796029]
[1738254031073,13.41184853,242.79,242.74,12.23796029]
[1738254031283,13.41184853,242.79,242.75,0.23932821]
[1738254031576,13.41184853,242.79,242.72,12.23796029]
[1738254031776,13.41184853,242.8,242.74,12.23796029]
[1738254031966,13.41184853,242.8,242.76,12.23796029]
[1738254032580,0.03,242.8,242.74,12.23796029]
[1738254033273,12.23796029,242.76,242.68,12.47719195]
[1738254033475,13.41184853,242.73,242.66,12.23796029]
[1738254033779,13.41184853,242.73,242.67,0.23987777]
[1738254033979,13.41184853,242.73,242.66,12.23796029]
[1738254033980,14.18438635,242.73,242.66,12.23796029]
[1738254034478,12.23796029,242.76,242.69,12.23796029]
[1738254034778,12.23796029,242.71,242.64,12.23796029]
[1738254035078,12.23796029,242.67,242.63,0.063]
[1738254036260,12.23796029,242.68,242.63,0.063]
[1738254036661,12.23796029,242.69,242.63,0.063]
[1738254036861,12.23796029,242.69,242.63,0.30305066]
[1738254037078,12.23796029,242.7,242.63,12.54101095]
[1738254037253,12.23796029,242.72,242.65,12.23796029]
[1738254037578,12.23796029,242.72,242.66,0.23985588]
[1738254038072,12.23796029,242.71,242.64,12.23796029]
[1738254038267,12.23796029,242.71,242.65,0.23992272]
[1738254039782,12.23796029,242.7,242.65,0.23992272]
[1738254040077,12.23796029,242.68,242.63,0.063]
[1738254041452,12.23796029,242.67,242.63,0.063]
[1738254042561,12.23796029,242.68,242.63,0.063]
[1738254043660,25.64980882,242.67,242.63,0.063]
[1738254043853,13.41184853,242.65,242.63,0.063]
[1738254044364,25.64980882,242.65,242.63,0.063]
[1738254045461,13.41184853,242.65,242.63,0.063]
[1738254045665,0.77278099,242.69,242.63,0.063]
[1738254045666,12.23796029,242.68,242.63,0.063]
[1738254045965,0.77274658,242.67,242.63,0.063]
[1738254046885,13.41184853,242.66,242.63,0.063]
[1738254048181,13.01070687,242.67,242.63,20.063]
[1738254048380,0.77275009,242.75,242.66,12.23796029]
[1738254048561,13.41184853,242.73,242.67,12.47780984]
[1738254048762,13.41184853,242.73,242.68,12.23796029]
[1738254049267,13.41184853,242.71,242.65,12.23796029]
[1738254049473,13.41184853,242.69,242.63,12.30096029]
[1738254049788,13.41184853,242.67,242.63,0.063]
[1738254050081,12.23796029,242.68,242.63,0.063]
[1738254050260,14.18456507,242.67,242.63,0.063]
[1738254050465,26.42252536,242.67,242.63,0.063]
[1738254050665,14.18456507,242.67,242.63,0.063]
[1738254050874,12.23796029,242.69,242.63,12.30096029]
[1738254051075,12.23796029,242.7,242.63,12.30096029]
[1738254051279,0.77268632,242.69,242.63,12.30096029]
[1738254051478,13.41184853,242.69,242.63,12.30096029]
[1738254051689,12.23796029,242.71,242.64,12.47802394]
[1738254051982,13.41184853,242.7,242.64,12.47802394]
[1738254052284,14.18448751,242.7,242.64,12.23796029]
[1738254052583,26.4224478,242.7,242.63,12.30096029]
[1738254052977,14.18448751,242.7,242.64,12.47800256]
[1738254053678,12.23796029,242.72,242.65,12.23796029]
[1738254053877,14.18449687,242.7,242.64,12.23796029]
[1738254054073,12.23796029,242.72,242.65,12.47805093]
[1738254054280,0.77261387,242.71,242.65,12.23796029]
[1738254054987,13.41184853,242.7,242.65,12.23796029]
[1738254055381,12.23796029,242.73,242.66,12.23796029]
[1738254055582,13.41184853,242.71,242.66,12.23796029]
[1738254055889,12.23796029,242.76,242.69,12.23796029]
[1738254056072,0.77247954,242.75,242.69,12.23796029]
[1738254056272,13.41184853,242.74,242.68,12.23796029]
[1738254056494,25.64980882,242.74,242.67,12.23796029]
[1738254057175,0.03,242.7,242.67,12.23796029]
[1738254058681,0.03,242.7,242.66,12.23796029]
[1738254058883,0.03,242.7,242.64,12.23796029]
[1738254059086,13.41184853,242.69,242.63,12.30096029]
[1738254059282,26.42250125,242.69,242.63,0.063]
[1738254059587,13.01065272,242.69,242.63,0.063]
[1738254060290,25.64980882,242.68,242.63,0.063]
[1738254060485,13.41184853,242.66,242.63,0.063]
[1738254060993,25.64980882,242.64,242.63,0.063]
[1738254061370,13.41184853,242.64,242.63,0.063]
[1738254061567,14.18473969,242.64,242.63,0.063]
[1738254061796,0.77289116,242.68,242.63,12.30096029]
[1738254062089,14.18473969,242.68,242.63,12.30096029]
[1738254062295,1.661,242.69,242.64,12.23796029]
[1738254062496,14.1845363,242.68,242.63,12.30096029]
[1738254062684,12.23796029,242.67,242.63,0.063]
[1738254062872,14.1845363,242.68,242.63,0.063]
[1738254062873,13.01078253,242.66,242.63,0.063]
[1738254063074,13.41184853,242.65,242.63,0.063]
[1738254063375,0.77285933,242.64,242.63,0.063]
[1738254063581,14.18470786,242.64,242.63,0.063]
[1738254065877,26.42266815,242.64,242.63,0.063]
[1738254067310,30.54396815,242.64,242.63,0.063]
[1738254069175,31.54396815,242.64,242.63,0.063]
[1738254069378,43.78192844,242.64,242.63,0.063]
[1738254069581,44.78192844,242.64,242.63,0.063]
[1738254069977,2.0,242.62,242.59,0.063]
[1738254070188,18.53126029,242.6,242.59,0.063]
[1738254070392,31.94310882,242.6,242.59,0.063]
[1738254070772,36.06510882,242.6,242.59,0.063]
[1738254071174,31.94310882,242.6,242.59,0.063]
[1738254072086,36.06510882,242.6,242.59,0.063]
[1738254072397,36.83830604,242.6,242.59,0.063]
[1738254073087,32.71630604,242.6,242.59,0.063]
[1738254073285,26.42300604,242.6,242.59,0.063]
[1738254074481,13.41184853,242.6,242.59,0.063]
[1738254074676,14.18488301,242.6,242.59,0.063]
[1738254074883,26.4228433,242.6,242.59,0.063]
[1738254076399,14.18488301,242.6,242.59,0.063]
[1738254076909,0.77296281,242.64,242.59,0.063]
[1738254077199,13.41184853,242.63,242.59,12.30096029]
[1738254077497,13.41184853,242.63,242.59,0.063]
[1738254077797,13.41184853,242.61,242.59,0.063]
[1738254079602,0.80291819,242.68,242.6,12.47844399]
[1738254079910,0.80291819,242.68,242.59,0.063]
[1738254079911,12.23796029,242.66,242.59,0.063]
[1738254080114,25.64980882,242.64,242.59,0.063]
[1738254080404,25.64980882,242.6,242.59,0.063]
[1738254080614,26.42283504,242.6,242.59,0.063]
[1738254080820,25.64980882,242.6,242.59,0.063]
[1738254082302,26.42294292,242.6,242.59,0.063]
[1738254082683,22.02436888,242.6,242.59,0.063]
[1738254084705,26.43238823,242.6,242.59,0.063]
[1738254085089,13.41184853,242.6,242.59,0.063]
[1738254085390,0.03,242.63,242.59,0.063]
[1738254085590,0.80289771,242.63,242.59,0.063]
[1738254087600,25.65925413,242.62,242.59,0.063]
[1738254087915,25.65925413,242.6,242.59,0.063]
[1738254088599,13.41184853,242.6,242.59,0.063]
[1738254088906,0.03,242.63,242.59,0.063]
[1738254089097,0.03,242.63,242.6,12.2474056]
[1738254090194,0.03,242.63,242.59,0.063]
[1738254090508,0.03,242.63,242.59,12.3104056]
[1738254093295,0.03,242.63,242.62,12.48714499]
[1738254094097,0.03,242.63,242.62,12.2474056]
[1738254094616,0.03,242.63,242.59,12.5502037]
[1738254094797,0.03,242.63,242.59,0.3027981]
[1738254095005,0.03,242.63,242.59,12.5502037]
[1738254095513,0.03,242.63,242.6,12.2474056]
[1738254095904,0.03,242.63,242.59,0.063]
[1738254096315,0.03,242.63,242.59,12.3104056]
[1738254096515,0.03,242.63,242.59,0.063]
[1738254097914,0.03,242.63,242.6,12.2474056]
[1738254098418,0.03,242.63,242.59,0.063]
[1738254099916,13.44184853,242.63,242.59,0.063]
[1738254100121,13.02033062,242.62,242.59,0.063]
[1738254100302,25.65925413,242.6,242.59,0.063]
[1738254100503,26.43227334,242.6,242.59,0.063]
[1738254101704,30.55427334,242.6,242.59,0.063]
[1738254102617,26.43227334,242.6,242.59,0.063]
[1738254103418,30.55427334,242.6,242.59,0.063]
[1738254104202,26.43227334,242.6,242.59,0.063]
[1738254104402,25.65925413,242.6,242.59,0.063]
[1738254104809,26.43232811,242.6,242.59,0.063]